Cogmind - Beta 17 @@@ ROGUE MODE // 2026.08.03 @ 00:30:06 Player: 4R-ZE3 Result: Destroyed by Tesla Bomb Trap Performance ------------- Evolutions (5) 2500 Regions Visited (9) 1800 Robots Destroyed (64) 320 Value Destroyed (2816) 2816 Prototype IDs (9) 180 Alien Tech Used (0) 0 Bonus (800) 800 TOTAL SCORE: 8416 Bonus ------- Registered with UFD 300 Met Optimus in HQ 500 Cogmind --------- Core Integrity 0/1000 Matter 85/300 Energy 98/100 System Corruption 24% Temperature Cool (0) Movement Core (50) Location -5/Factory Parts ------- > --- POWER (2) -------- (None) > --- PROPULSION (6) --- (None) > --- UTILITY (7) ------ (None) > --- WEAPON (2) ------- (None) > --- INVENTORY (5) ---- Advanced ECM Suite Improved Component Analysis Suite Fusion Bomb Launcher Peak State ------------ > --- POWER ------------ Antimatter Reactor Antimatter Reactor > --- PROPULSION ------- Heavy Treads Heavy Treads Improved Heavy Siege Treads > --- UTILITY ---------- Advanced Cooling System Huge Storage Unit Improved Sensor Array Improved Signal Interpreter Experimental Terrain Scanner Improved Reaction Control System Advanced Cloaking Device > --- WEAPON ----------- Hypervelocity Railgun Enhanced Hardcell Cannon > --- INVENTORY -------- Antimatter Reactor Advanced Heavy Treads Advanced Heavy Treads Advanced Heavy Siege Treads VTOL Module Nuclear Pulse Thruster Nuclear Pulse Thruster Nuclear Pulse Thruster Advanced Surge Thruster Advanced ECM Suite Hardened Medium Armor Plating Damper Plating Fusion Bomb Launcher Improved Plasma Cutter [Rating: 119] Favorites ----------- Power Antimatter Reactor Engine Light Ion Engine Power Core Light Fission Core Reactor Antimatter Reactor Propulsion Heavy Treads Treads Heavy Treads Leg Aluminum Leg Wheel Subdweller Monowheel Flight Unit Nuclear Pulse Thruster Utility Huge Storage Unit Device Experimental Terrain Scanner Storage Huge Storage Unit Processor Improved Signal Interpreter Hackware Hacking Suite Protection Core Shielding Weapon Improved Assault Rifle Energy Gun Medium Laser Ballistic Gun Improved Assault Rifle Ballistic Cannon Improved Light Cannon Build | -11 -10 -10 -9 -6 -6 -6 -5 -5 -5 ------- Run | Yrd Mat Sub Scr Fac Was Fac Fac Was Fac Slots Evolved 10 | . . . . 8 . . 2 . . Power 1 | . . . . 1 . . . . . Propulsion 4 | . . . . 2 . . 2 . . Utility 5 | . . . . 5 . . . . . Weapon . | . . . . . . . . . . Parts Attached 94 | 6 8 5 5 19 5 5 3 12 26 Power 12 | 1 1 . . 2 1 . . 2 5 Engine 4 | 1 1 . . 1 1 . . . . Core 5 | . . . . 1 . . . . 4 Reactor 3 | . . . . . . . . 2 1 Propulsion 35 | 2 2 2 4 5 4 1 2 4 9 Treads 15 | 2 . . 2 3 . . . 4 4 Leg 5 | . 2 1 . 2 . . . . . Wheel 8 | . . 1 2 . . . . . 5 Hover . | . . . . . . . . . . Flight 7 | . . . . . 4 1 2 . . Utility 28 | 1 2 2 1 7 . 4 1 2 8 Device 14 | . . 1 . 3 . 3 1 1 5 Storage 4 | 1 1 1 . . . . . . 1 Processor 3 | . . . 1 1 . 1 . . . Hackware 1 | . . . . . . . . . 1 Protection 6 | . 1 . . 3 . . . 1 1 Artifact . | . . . . . . . . . . Weapon 19 | 2 3 1 . 5 . . . 4 4 Energy Gun 2 | 2 . . . . . . . . . Energy Cannon . | . . . . . . . . . . Ballistic Gun 11 | . 3 . . 3 . . . 1 4 Ballistic Cannon 6 | . . 1 . 2 . . . 3 . Launcher . | . . . . . . . . . . Special Weapon . | . . . . . . . . . . Impact Weapon . | . . . . . . . . . . Slashing Weapon . | . . . . . . . . . . Piercing Weapon . | . . . . . . . . . . Special Melee Weapon . | . . . . . . . . . . Unidentified Prototypes 3 | . 1 1 . . . . . . 1 Parts Lost 47 | . 1 2 . 14 . 1 4 . 25 Power 6 | . . . . 1 . . 1 . 4 Propulsion 18 | . 1 1 . 3 . 1 1 . 11 Utility 14 | . . . . 5 . . 1 . 8 Weapon 9 | . . 1 . 5 . . 1 . 2 Highest Loss Streak 7 | . 1 1 . 6 . 1 4 . 7 To Critical Strikes 2 | . . . . 1 . . . . 1 Average Backups 15 | . 5 14 19 18 4 4 2 13 19 Power 1 | . . 2 4 . . . . . . Propulsion 2 | . . 1 . 7 1 2 . 5 4 Utility 3 | . 1 2 5 2 2 2 2 2 6 Weapon 6 | . 3 7 8 7 . . . 3 6 Tool/Special . | . . . . . . . . . . Unused Backups 29 | . . . 1 4 11 . . 1 12 Power 6 | . . . 1 4 . . . . 1 Propulsion 5 | . . . . . 3 . . . 2 Utility 8 | . . . . . 2 . . 1 5 Weapon 9 | . . . . . 6 . . . 3 Tool/Special 1 | . . . . . . . . . 1 Average Slot Usage (%) 83 | . 87 99 93 77 37 73 80 75 74 Engine 6 | . 8 14 14 5 . . . . . Core 1 | . . . . 2 4 6 4 . 1 Reactor 2 | . . . . . . . . 9 6 Treads 13 | . 23 8 9 21 . . . 13 13 Leg 1 | . 3 6 3 . . . . . . Wheel 5 | . . 13 15 . . . . . 1 Flight 2 | . . . . . 21 26 33 3 . Device 12 | . . 1 3 14 3 20 25 26 20 Storage 8 | . 14 14 14 6 . . . 4 4 Processor 3 | . . . 4 2 . 5 5 5 4 Protection 4 | . 7 12 . 10 4 6 4 2 1 Energy Gun 1 | . 10 . . . . . . . . Ballistic Gun 10 | . 16 22 14 6 . . . 1 6 Ballistic Cannon 6 | . . 5 14 4 1 6 4 4 4 Peak Build Rating 119 | 6 12 16 17 44 40 57 69 119 116 Average Rating 47 | 4 9 13 15 36 32 52 63 101 90 On Entrance 35 | . 6 12 16 16 44 40 57 55 113 Avg Prop Armor Cover (%) 7 | . 8 10 6 16 . . 6 12 7 Naked Turns 7 | . . . . . . . . . 7 Heaviest Build 145 | 12 20 91 91 120 15 21 23 145 143 Greatest Support 215 | 40 40 20 43 80 24 24 32 215 215 Greatest Overweight (x) 10 | . 1 4 4 7 1 . . 10 7 Average Overweight (x) 1 | . . 3 2 1 . . . . . Largest Inventory Capacity 25 | 8 10 25 25 25 5 5 5 25 25 Average Capacity 20 | 7 8 24 25 25 5 5 5 22 24 Most Carried 25 | 1 10 19 21 24 5 5 3 25 25 Average Carried 16 | . 5 14 19 18 3 4 2 17 23 Final Capacity 25 | 8 10 25 25 25 5 5 5 25 5 Final Carried 24 | 1 10 19 21 17 5 4 3 24 3 Class Distribution -------------------- 56% | Mutant 14% | Scavenger-Skirmisher 10% | Scavenger-Mutant 8% | Skirmisher 6% | Scout Dominant Class ---------------- Mutant | -10/Materials Mutant | -10/Subcaves Mutant | -9/Scraptown Scavenger-Mutant | -6/Factory Sprinter | -6/Waste Scout | -6/Factory Scout | -5/Factory Skirmisher | -5/Waste Scavenger-Skirmisher | -5/Factory Resources | -11 -10 -10 -9 -6 -6 -6 -5 -5 -5 ----------- Run | Yrd Mat Sub Scr Fac Was Fac Fac Was Fac Matter Collected 2728 | 185 272 219 63 376 22 115 . 309 1167 Remotely . | . . . . . . . . . . Salvage Created 2604 | . 506 262 . 434 . . . . 1402 Parts 118 | . 23 21 . 17 . . . . 57 Haulers Intercepted . | . . . . . . . . . . Recyclers Shooed 4 | . . . . 2 . . . . 2 Parts Field Recycled . | . . . . . . . . . . Retrieved Matter . | . . . . . . . . . . Parts Self-Destructed 5 | . . 5 . . . . . . . Prevented . | . . . . . . . . . . Parts Restored . | . . . . . . . . . . Kills | -11 -10 -10 -9 -6 -6 -6 -5 -5 -5 ------- Run | Yrd Mat Sub Scr Fac Was Fac Fac Was Fac Combat Hostiles Destroyed 56 | . 14 7 . 12 . . . . 23 Melee 1 | . 1 . . . . . . . . Guns 33 | . 13 5 . 5 . . . . 10 Cannons 22 | . . 2 . 7 . . . . 13 Classes Destroyed 11 | . 3 1 . 2 . . . . 5 Worker 3 | . . . . . . . . . 3 Builder 1 | . . . . . . . . . 1 Recycler 2 | . . . . . . . . . 2 Operator 1 | . 1 . . . . . . . . Watcher 1 | . . . . . . . . . 1 Swarmer 6 | . 3 . . 3 . . . . . Grunt 27 | . 11 . . 5 . . . . 11 Brawler 3 | . . . . 2 . . . . 1 Hunter 6 | . . . . 2 . . . . 4 Programmer 7 | . . . . . . . . . 7 Subdweller 7 | . . 7 . . . . . . . Best Kill Streak 5 | . 4 2 . 5 . . . . 4 Combat Bots Only 5 | . 4 2 . 5 . . . . 4 Max Kills in Single Turn 2 | . 2 1 . 1 . . . . 1 Gunslinging . | . . . . . . . . . . Exploded . | . . . . . . . . . . Melee 1 | . 1 . . . . . . . . Uniques/NPCs Destroyed . | . . . . . . . . . . Combat | -11 -10 -10 -9 -6 -6 -6 -5 -5 -5 -------- Run | Yrd Mat Sub Scr Fac Was Fac Fac Was Fac Hostile Shots Fired 598 | . 57 40 . 120 . 20 20 . 341 Missed 157 | . 15 14 . 30 . 10 11 . 77 Hits 441 | . 42 26 . 90 . 10 9 . 264 Melee 23 | . . . . 15 . . . . 8 Projectile 418 | . 42 26 . 75 . 10 9 . 256 Critical Strikes 17 | . 1 . . 6 . . . . 10 Damage Taken 8015 | . 500 527 . 1818 . 204 175 . 4791 Core 1405 | . 68 21 . 266 . 29 18 . 1003 Absorbed by Shields . | . . . . . . . . . . Reduced by Siege Mode 192 | . . . . . . . . . 192 Redirected to Shielding 9 | . 4 5 . . . . . . . Ignored by Resistances 213 | . . . . . . . . . 213 Regen/Repaired (Parts) 236 | . . . . . . 24 . . 212 Core Remaining (%) 76 | 100 . . 64 . . 65 . . . Volleys Fired 247 | . 37 29 . 54 . 5 . . 122 Largest 2 | . 2 2 . 2 . 1 . . 2 Hottest 100 | . 100 56 . 66 . 33 . . 96 Shots Fired 462 | . 74 58 . 100 . 5 . . 225 Gun 308 | . 74 44 . 61 . . . . 129 Cannon 154 | . . 14 . 39 . 5 . . 96 Launcher . | . . . . . . . . . . Special . | . . . . . . . . . . Kinetic 430 | . 42 58 . 100 . 5 . . 225 Thermal 32 | . 32 . . . . . . . . Explosive . | . . . . . . . . . . Electromagnetic . | . . . . . . . . . . Robot Hit Streak 21 | . 13 9 . 16 . . . . 21 Robot Miss Streak 6 | . 3 2 . 2 . . . . 6 Penetration Max 1 | . . . . . . . . . 1 Secondary Targets 5 | . 2 1 . 1 . . . . 1 Max Gunslinging Chain 1 | . 1 1 . 1 . . . . 1 Shots Hit Robots 312 | . 50 46 . 77 . . . . 139 Core Hits 123 | . 22 14 . 30 . . . . 57 Critical Kills 9 | . . . . . . . . . 9 Critical Parts Destroyed 12 | . . . . 1 . . . . 11 Critical Strikes 27 | . 2 . . 4 . . . . 21 Burn 2 | . 2 . . . . . . . . Destroy 22 | . . . . 2 . . . . 20 Blast 3 | . . . . 2 . . . . 1 Melee Attacks . | . . . . . . . . . . Impact . | . . . . . . . . . . Slashing . | . . . . . . . . . . Piercing . | . . . . . . . . . . Sneak Attacks . | . . . . . . . . . . Combat Hostiles . | . . . . . . . . . . Follow-up Attacks . | . . . . . . . . . . Damage Inflicted 6742 | . 728 762 . 1459 . . . . 3793 Guns 4248 | . 723 549 . 896 . . . . 2080 Cannons 2489 | . . 213 . 563 . . . . 1713 Explosions . | . . . . . . . . . . Melee . | . . . . . . . . . . Ramming 5 | . 5 . . . . . . . . Kinetic 6377 | . 363 762 . 1459 . . . . 3793 Thermal 360 | . 360 . . . . . . . . Explosive . | . . . . . . . . . . Electromagnetic . | . . . . . . . . . . Impact . | . . . . . . . . . . Slashing . | . . . . . . . . . . Piercing . | . . . . . . . . . . Highest Corruption 23 | . . . . 8 13 13 . . 23 Average Corruption 8 | . . . . 7 11 13 . . 7 Corruption Purged . | . . . . . . . . . . Corruption Blocked . | . . . . . . . . . . Effects 89 | . . . . 25 4 8 . . 52 Message Errors 21 | . . . . 6 . 3 . . 12 Matter Fused 20 | . . . . 7 1 1 . . 11 Heat Flow Errors 5 | . . . . 2 . . . . 3 Energy Discharges 7 | . . . . 4 . . . . 3 Parts Rejected 5 | . . . . . 1 1 . . 3 Parts Fused 2 | . . . . . . . . . 2 Data Loss (minor) 12 | . . . . 3 . 2 . . 7 Misfires 1 | . . . . . . . . . 1 Alerts 4 | . . . . . 1 . . . 3 Misdirections 3 | . . . . . 1 1 . . 1 Weapon Failures 9 | . . . . 3 . . . . 6 Overload Shots . | . . . . . . . . . . Overflow Damage 17 | . . . . . . . . . 17 Projectiles 17 | . . . . . . . . . 17 Explosions . | . . . . . . . . . . Melee . | . . . . . . . . . . Knockbacks 20 | . . 4 . 1 . . . . 15 Impact . | . . . . . . . . . . Kinetic 19 | . . 4 . 1 . . . . 14 Secondary 1 | . . . . . . . . . 1 Self-Inflicted Damage . | . . . . . . . . . . Shots . | . . . . . . . . . . Rammed 3 | . 3 . . . . . . . . Targets Rammed 4 | . 4 . . . . . . . . Kicked . | . . . . . . . . . . Crushed 1 | . 1 . . . . . . . . Highest Temperature 340 | . 340 . . 190 . 1 92 3 261 Average Temperature 92 | . 148 . . 74 . 1 44 2 59 Received Heat Transfer 1872 | . 270 114 . 360 . . 45 . 1083 Effects 3 | . 3 . . . . . . . . Energy Bleed 1 | . 1 . . . . . . . . Interference 2 | . 2 . . . . . . . . Siege Activations 4 | . . . . . . . . . 4 Total Turns 120 | . . . . . . . . . 120 Longest Duration 52 | . . . . . . . . . 52 Martial Activations . | . . . . . . . . . . Shielding Activations . | . . . . . . . . . . Robots Disrupted . | . . . . . . . . . . Combat Hostiles . | . . . . . . . . . . Robots Corrupted . | . . . . . . . . . . Combat Hostiles . | . . . . . . . . . . Parts Fried . | . . . . . . . . . . Impact Corruptions . | . . . . . . . . . . Robots Melted . | . . . . . . . . . . Combat Hostiles . | . . . . . . . . . . Parts Melted 5 | . 3 . . . . . . . 2 Heat Transferred 1147 | . 1147 . . . . . . . . Parts Sabotaged . | . . . . . . . . . . Parts Stolen . | . . . . . . . . . . Parts Stripped . | . . . . . . . . . . Power Chain Reactions . | . . . . . . . . . . Alert | -11 -10 -10 -9 -6 -6 -6 -5 -5 -5 ------- Run | Yrd Mat Sub Scr Fac Was Fac Fac Was Fac Maximum Alert Level 1 | . . . . . . . . . 1 Low Security (%) 98 | 100 100 . . 100 100 100 100 100 96 Level 1 1 | . . . . . . . . . 3 Level 2 . | . . . . . . . . . . Level 3 . | . . . . . . . . . . Level 4 . | . . . . . . . . . . Level 5 . | . . . . . . . . . . High Security . | . . . . . . . . . . Max Security . | . . . . . . . . . . Peak Influence 367 | . 135 . . 93 24 135 79 22 367 Initial 60 | . . . . . 24 . 60 22 . Average 43 | . 46 . . 13 12 21 20 1 74 Influence Increases 2076 | . 388 . . 297 . 204 179 . 1008 Destroy 0b10 Robot/C 980 | . 280 . . 240 . . . . 460 Destroy 0b10 Robot/NC 40 | . 5 . . . . . . . 35 Destroy Leader 192 | . 60 . . 40 . . . . 92 Allied During Kill 1 | . . . . 1 . . . . . Successful Hack 107 | . 12 . . . . 54 14 . 27 Disable Machine 165 | . 15 . . . . 15 . . 135 Destroy Structure 96 | . 1 . . 1 . . . . 94 Partial Spotted 60 | . 15 . . . . . 15 . 30 Lose Combat Pursuer 435 | . . . . 15 . 135 150 . 135 Influence Decreases 1721 | . 295 93 . 226 71 79 239 65 653 Entered New Map 200 | . . 45 . . 47 . 65 43 . Time Decay 1074 | . 285 48 . 125 24 69 90 22 411 Lost Part 348 | . 10 . . 81 . 10 5 . 242 Lost Ally 20 | . . . . 20 . . . . . Purge Threat 79 | . . . . . . . 79 . . Squads Dispatched 21 | . 4 . . 5 . 2 3 . 7 Investigation 6 | . . . . 1 . 2 1 . 2 Extermination 5 | . . . . 1 . . . . 4 Reinforcement 7 | . 4 . . . . . 2 . 1 Assault . | . . . . . . . . . . Garrison 3 | . . . . 3 . . . . . Intercept . | . . . . . . . . . . Searches Triggered . | . . . . . . . . . . Construction Impeded . | . . . . . . . . . . Haulers Reinforced 1 | . . . . . . . . . 1 Active Scanning Responses . | . . . . . . . . . . Cargo Convoy Interrupts . | . . . . . . . . . . Stealth | -11 -10 -10 -9 -6 -6 -6 -5 -5 -5 --------- Run | Yrd Mat Sub Scr Fac Was Fac Fac Was Fac Distress Signals 10 | . 1 . . . . 2 2 . 5 Communications Jammed . | . . . . . . . . . . Distress Signals . | . . . . . . . . . . Times Spotted 139 | . 21 7 . 14 5 16 20 . 56 Peak Tracking Total 11 | . 5 2 . 5 5 5 8 . 11 Tactical Retreats 12 | . . . . 1 . 3 6 . 2 ECM-based Alert Blocks 9 | . . . . . . 5 4 . . Traps | -11 -10 -10 -9 -6 -6 -6 -5 -5 -5 ------- Run | Yrd Mat Sub Scr Fac Was Fac Fac Was Fac Traps Triggered 7 | . . . . 2 . 2 1 . 2 Indirectly . | . . . . . . . . . . Trap Hack Attempts . | . . . . . . . . . . Triggered . | . . . . . . . . . . Disarmed . | . . . . . . . . . . Reprogrammed . | . . . . . . . . . . Reused . | . . . . . . . . . . Traps Extracted . | . . . . . . . . . . Installed . | . . . . . . . . . . Triggered . | . . . . . . . . . . Machines | -11 -10 -10 -9 -6 -6 -6 -5 -5 -5 ---------- Run | Yrd Mat Sub Scr Fac Was Fac Fac Was Fac Machines Disabled 11 | . 1 . . . . 1 . . 9 Max in Single Turn 2 | . 1 . . . . 1 . . 2 Garrison Access 1 | . . . . . . . 1 . . Machines Repaired . | . . . . . . . . . . Machines Dismantled . | . . . . . . . . . . Machines Sabotaged . | . . . . . . . . . . Overloaded Fab Kills . | . . . . . . . . . . Hacking | -11 -10 -10 -9 -6 -6 -6 -5 -5 -5 --------- Run | Yrd Mat Sub Scr Fac Was Fac Fac Was Fac Machines Accessed 35 | . 5 1 4 3 . 6 4 . 12 Terminals 12 | . 5 . . . . 2 2 . 3 Fabricators . | . . . . . . . . . . Repair Stations 3 | . . . . . . 1 . . 2 Recycling Units 8 | . . . . 1 . 3 1 . 3 Scanalyzers 4 | . . . . 1 . . . . 3 Garrison Access 3 | . . . . 1 . . 1 . 1 Total Hacks 99 | . 14 4 30 4 . 14 8 . 25 Successful 60 | . 4 4 30 1 . 6 5 . 10 Failed 39 | . 10 . . 3 . 8 3 . 15 Catastrophic 4 | . . . . 1 . 2 . . 1 Database Lockouts . | . . . . . . . . . . Manual 41 | . 15 . . 1 . 10 5 . 10 Terminals 32 | . 14 . . . . 6 5 . 7 Fabricators . | . . . . . . . . . . Repair Stations 11 | . . . . . . 3 . . 8 Recycling Units 12 | . . . . 1 . 5 1 . 5 Scanalyzers 6 | . . . . 2 . . . . 4 Garrison Access 4 | . . . . 1 . . 2 . 1 Terminal Hacks 38 | . 2 4 30 . . 1 1 . . Record 34 | . . 4 30 . . . . . . Robot Analysis 2 | . 2 . . . . . . . . Level Access Points 1 | . . . . . . 1 . . . Unreport Threat 1 | . . . . . . . 1 . . Fabricator Hacks . | . . . . . . . . . . Repair Station Hacks 5 | . . . . . . 2 . . 3 Scan Component 3 | . . . . . . 1 . . 2 Repair 2 | . . . . . . 1 . . 1 Recycling Unit Hacks . | . . . . . . . . . . Scanalyzer 3 | . . . . . . . . . 3 Retrieve Study 3 | . . . . . . . . . 3 Garrison Access Hacks 1 | . . . . . . . 1 . . Seal Access 1 | . . . . . . . 1 . . Unauthorized Hacks 13 | . 2 . . 1 . 3 3 . 4 Terminals 8 | . 2 . . . . 2 2 . 2 Botnet 8 | . 2 . . . . 2 2 . 2 Fabricators . | . . . . . . . . . . Repair Stations . | . . . . . . . . . . Recycling Units 5 | . . . . 1 . 1 1 . 2 Fedlink 5 | . . . . 1 . 1 1 . 2 Scanalyzers . | . . . . . . . . . . Garrison Access . | . . . . . . . . . . Data Cores Recovered . | . . . . . . . . . . Used . | . . . . . . . . . . Hacking Detections 21 | . 4 . . 2 . 4 3 . 8 Full Trace Events 1 | . . . . . . 1 . . . Feedback Events . | . . . . . . . . . . Feedback Blocked . | . . . . . . . . . . Robot Schematics Acquired . | . . . . . . . . . . Robots Built . | . . . . . . . . . . Authchips . | . . . . . . . . . . Time . | . . . . . . . . . . Total Robot Build Rating . | . . . . . . . . . . Part Schematics Acquired . | . . . . . . . . . . Parts Built . | . . . . . . . . . . Authchips . | . . . . . . . . . . Time . | . . . . . . . . . . Total Part Build Rating . | . . . . . . . . . . Part Studies Acquired 3 | . . . . . . . . . 3 Parts Repaired 2 | . . . . . . 1 . . 1 Time 117 | . . . . . . 43 . . 74 Parts Recycled . | . . . . . . . . . . Recycled Matter . | . . . . . . . . . . Retrieved Matter . | . . . . . . . . . . Retrieved Components . | . . . . . . . . . . Parts Scanalyzed . | . . . . . . . . . . Part Schematics Acquired . | . . . . . . . . . . Parts Damaged . | . . . . . . . . . . Bothacking | -11 -10 -10 -9 -6 -6 -6 -5 -5 -5 ------------ Run | Yrd Mat Sub Scr Fac Was Fac Fac Was Fac Used RIF Installer . | . . . . . . . . . . Robots Hacked . | . . . . . . . . . . Non-combat . | . . . . . . . . . . Combat . | . . . . . . . . . . Robot Hacks Applied . | . . . . . . . . . . Relay Couplers Released . | . . . . . . . . . . Fabnet Peak Effective % . | . . . . . . . . . . Robots Rewired . | . . . . . . . . . . Allies Hacked . | . . . . . . . . . . Hacks Repelled . | . . . . . . . . . . Allies | -11 -10 -10 -9 -6 -6 -6 -5 -5 -5 -------- Run | Yrd Mat Sub Scr Fac Was Fac Fac Was Fac Total Allies 1 | . . 1 . . . . . . . Largest Group 1 | . . 1 1 1 . . . . . Highest-Rated Group 19 | . . 19 19 19 . . . . . Highest-Rated Ally 19 | . . 19 19 19 . . . . . Initial UFD Resources 52 | . . . . 24 34 34 42 52 52 Total Orders . | . . . . . . . . . . Ally Attacks 8 | . . . . 8 . . . . . Total Damage 112 | . . . . 112 . . . . . Kills . | . . . . . . . . . . Allies Corrupted . | . . . . . . . . . . Allies Melted . | . . . . . . . . . . Intel | -11 -10 -10 -9 -6 -6 -6 -5 -5 -5 ------- Run | Yrd Mat Sub Scr Fac Was Fac Fac Was Fac Active Infowar (turns) 3609 | . . . . 742 45 212 259 652 1699 Sensors 2285 | . . . . . . 194 259 352 1480 Terrain 2788 | . . . . 742 45 212 237 628 924 Traps 1216 | . . . . . . . . . 1216 Cloaking 1457 | . . . . . . . . 336 1121 ECM 77 | . . . . 30 . 16 31 . . Robot Analysis Total 2 | . 2 . . . . . . . . Derelict Logs Recovered 5 | . . . 5 . . . . . . Drone Launches . | . . . . . . . . . . Drone Recoveries . | . . . . . . . . . . Exploration | -11 -10 -10 -9 -6 -6 -6 -5 -5 -5 ------------- Run | Yrd Mat Sub Scr Fac Was Fac Fac Was Fac Turns Passed 7733 | 67 1039 701 1810 806 66 212 277 670 2085 Spaces Moved 5085 | 38 473 390 1030 244 131 492 664 584 1039 Core 13 | 2 . . . . . . . . 11 Treads 2036 | 36 425 8 190 243 . . . 327 807 Legs 50 | . 48 1 . 1 . . . . . Wheels 1301 | . . 381 840 . . . . . 80 Hover . | . . . . . . . . . . Flight 1685 | . . . . . 131 492 664 257 141 Fastest Speed 21 | 50 160 150 130 245 31 27 21 24 22 Average Speed 123 | 154 163 150 174 251 32 29 27 106 141 Slowest Speed 834 | 160 190 190 480 610 117 31 31 834 280 Overloaded Moves 10 | . . . . . . . . . 10 Propulsion Burnouts . | . . . . . . . . . . Robots Hopped 8 | . . . . . . 2 3 . 3 Potential Cave-ins . | . . . . . . . . . . Cave-ins Triggered . | . . . . . . . . . . Exploration Rate (%) 42 | 3 71 31 71 7 87 15 12 95 35 Regions Visited 9 Branch Regions 2 Pre-discovered Areas 3 | . . 1 1 . . 1 . . . Known Exits Taken 1 | . . . . . . 1 . . . Unknown Exits Taken 4 | 1 1 1 1 . . . . . . Scrap Searched 4 | . . . 4 . . . . . . Spaces Dug 1 | . . . . . . . . . 1 Terrain Destroyed 73 | . . . . . . . . . 73 Melee . | . . . . . . . . . . Projectile 32 | . . . . . . . . . 32 AOE 41 | . . . . . . . . . 41 Terrain Rammed . | . . . . . . . . . . Walls Destroyed . | . . . . . . . . . . Machines Disabled . | . . . . . . . . . . Actions | -11 -10 -10 -9 -6 -6 -6 -5 -5 -5 --------- Run | Yrd Mat Sub Scr Fac Was Fac Fac Was Fac Total 6037 | 44 665 447 1046 334 153 548 755 632 1413 Wait 480 | . 127 9 3 2 2 47 90 3 197 Move 5063 | 37 472 389 1029 244 130 487 658 583 1034 Hop 7 | . . . . . . 2 3 . 2 Pick Up 84 | 1 11 12 5 11 8 1 1 18 16 Fast Attach 55 | 6 4 2 3 8 4 5 1 10 12 Attach 38 | . 1 2 2 11 6 1 2 1 12 Detach 6 | . . . . . . . . 6 . Swap 15 | . 3 1 . . . . . 2 9 Drop 38 | . 6 3 4 4 3 . . 9 9 Fire 247 | . 37 29 . 54 . 5 . . 122 Melee . | . . . . . . . . . . Ram . | . . . . . . . . . . Kick . | . . . . . . . . . . Crush 4 | . 4 . . . . . . . . Escape Stasis . | . . . . . . . . . . Rewire . | . . . . . . . . . . Trap . | . . . . . . . . . . Miscellaneous . | . . . . . . . . . . Route ------- -11/Scrapyard -10/Materials (discovered 4 exits: [*Mat x2] / [*Min] / *Sub) -10/Subcaves -9/Scraptown (discovered 2 exits: *Fac x2) -6/Factory -6/Waste -6/Factory (discovered 4 exits: *Fac x4) -5/Factory -5/Waste -5/Factory History --------- Turn | Location | Event 24 | -11/Scrapyard | Discovered new exit (range 15) 68 | -11/Scrapyard | Entered Materials 194 | -10/Materials | Discovered new exit (range 15) 316 | -10/Materials | Build established: Mutant 617 | -10/Materials | Discovered new exit (range 7) 1020 | -10/Materials | Discovered new exit (range 16) 1090 | -10/Materials | Discovered new exit (range 8) 1107 | -10/Materials | Entered Subcaves 1108 | -10/Subcaves | Approached by a straggling Scientist 1506 | -10/Subcaves | Ambushed by Subdwellers from Twisted Machinery 1524 | -10/Subcaves | Visited Clippyterm 1529 | -10/Subcaves | Learned location of Section 7 (-2) 1529 | -10/Subcaves | Learned Factory stockpile data 1738 | -10/Subcaves | Visited triangular shrine 1748 | -10/Subcaves | Found Prototype Device 1748 | -10/Subcaves | Identified V3-11A's Pendant 1753 | -10/Subcaves | Befriended Subdweller 1796 | -10/Subcaves | Scientist uncovered a shortcut to Scraptown 1808 | -10/Subcaves | Entered Scraptown 1808 | -9/Scraptown | Accompanied by 1 ally 2027 | -9/Scraptown | Visited CR-KLE's Repair Center 2039 | -9/Scraptown | Visited Red Mages 2183 | -9/Scraptown | Scanned Subdweller tech in exchange for log data 2187 | -9/Scraptown | Learned location of Testing (-3) 2189 | -9/Scraptown | Learned Research garrison access intel 2190 | -9/Scraptown | Learned Factory stockpile data 2192 | -9/Scraptown | Learned location of 1 exit from Lower Caves 2292 | -9/Scraptown | Delivered V3-11A's Pendant to T0-NE2 in exchange for information 2380 | -9/Scraptown | Visited UFD Registry 2380 | -9/Scraptown | Registered with UFD as "Mattersys" 2397 | -9/Scraptown | Visited Cyclists 2416 | -9/Scraptown | Entered Cyclist Reading Room 2442 | -9/Scraptown | Visited IN-MT5's Study 2561 | -9/Scraptown | Discovered new exit (range 13) 2585 | -9/Scraptown | Guru changed UFD alias to "Biotalker" 2698 | -9/Scraptown | Visited Chapter 10 2749 | -9/Scraptown | Visited Scrapoid Research Area 2770 | -9/Scraptown | Visited Abandonware Association 2785 | -9/Scraptown | Learned abandonware demo "KABOOM.EXE" 2821 | -9/Scraptown | Visited Curators Association 2840 | -9/Scraptown | Visited Infowarlord's Domain 2849 | -9/Scraptown | Found Exp. Terrain Scanner 2876 | -9/Scraptown | Visited Junk Repository 2919 | -9/Scraptown | Visited LU-1G1's Boring Crew 2946 | -9/Scraptown | Visited Sword Containment 2979 | -9/Scraptown | Visited DA-N13 Charitable Foundation 2997 | -9/Scraptown | Found DCF Scrap (28 items) 3177 | -9/Scraptown | Visited Scrap Suit Storage 3442 | -9/Scraptown | Met Optimus 3442 | -9/Scraptown | Accepted into 0bPrime 3612 | -9/Scraptown | Discovered new exit (range 3) 3618 | -9/Scraptown | Entered Factory 3618 | -6/Factory | Accompanied by 1 ally 3618 | -6/Factory | Evolved 8 slots: Power x1, Propulsion x2, Utility x5 3847 | -6/Factory | Lost 6 parts (1p1n2u2w) 3994 | -6/Factory | Loaded intel: 8 recycling unit locations 4044 | -6/Factory | Garrison activated, responded to threat 4124 | -6/Factory | Build established: Scavenger-Mutant 4424 | -6/Factory | Manually triggered Chute Trap 4424 | -6/Factory | Sucked down chute 4424 | -6/Factory | Entered Waste 4424 | -6/Waste | Released all parts (12) 4439 | -6/Waste | EMP discharged 4439 | -6/Waste | System corruption reached 10% 4449 | -6/Waste | Spotted C-40 Crusher 4468 | -6/Waste | Spotted C-40 Crusher 4478 | -6/Waste | Spotted C-40 Crusher 4481 | -6/Waste | Spotted C-40 Crusher 4486 | -6/Waste | Spotted C-40 Crusher 4486 | -6/Waste | Discovered new exit (range 10) 4486 | -6/Waste | Spotted C-40 Crusher 4490 | -6/Waste | Entered Factory 4612 | -6/Factory | Repaired Broken Adv. Surge Thruster 4681 | -6/Factory | Identified exit to Factory 4689 | -6/Factory | Loaded intel: 8 recycling unit locations 4689 | -6/Factory | Learned location of Protoforge (-2) 4702 | -6/Factory | Entered another Factory area 4702 | -5/Factory | Evolved 2 slots: Propulsion x2 4754 | -5/Factory | Loaded intel: 8 recycling unit locations 4800 | -5/Factory | Build established: Scout 4964 | -5/Factory | Lost 4 parts (1p1n1u1w) 4979 | -5/Factory | Sucked down chute 4979 | -5/Factory | Entered Waste 4979 | -5/Waste | The area was eerily silent 5024 | -5/Waste | Found Fusion Bomb Launcher 5049 | -5/Waste | Discovered new exit (range 13) 5185 | -5/Waste | Found Damper Plating 5561 | -5/Waste | Build established: Skirmisher 5648 | -5/Waste | Identified exit to Factory 5649 | -5/Waste | Entered Factory 5881 | -5/Factory | Build established: Scavenger-Skirmisher 6518 | -5/Factory | Repaired Enh. Hardcell Cannon 6686 | -5/Factory | Loaded intel: 8 recycling unit locations 6808 | -5/Factory | Lost 4 parts (1p2n1u) 7086 | -5/Factory | Build established: Skirmisher 7418 | -5/Factory | System corruption reached 10% 7429 | -5/Factory | Build established: Mutant 7449 | -5/Factory | Lost 3 parts (1n2u) 7560 | -5/Factory | Core integrity fell below 50% 7567 | -5/Factory | Lost 7 parts (1p2n3u1w) 7688 | -5/Factory | Released all parts (7) 7718 | -5/Factory | Lost 4 parts (1p2n1w) 7733 | -5/Factory | Core integrity fell below 20% 7734 | -5/Factory | Destroyed by Tesla Bomb Trap Last Messages --------------- Effective improvements: +1 support 07722_ Y96WTD3EL PCS3FHW4FEW%DQOHPNPMDYI3SD 07730_ T-07 Excavator destroyed. 07731_ Adv. Surge Thruster+ destroyed. 07732_ S-27 Virus destroyed. 07733_ R-10 Processor collects Wheel. 07734_ Triggered Tesla Bomb Trap. 07734_ A bubble of electromagnetic force engulfs the area. 07734_ Tesla Bomb Trap short circuited. 07734_ A bubble of electromagnetic force engulfs the area. 07734_ Tesla Bomb Trap short circuited. 07734_ A bubble of electromagnetic force engulfs the area. 07734_ Tesla Bomb Trap short circuited. 07734_ S-27 Virus destroyed. 07734_ A bubble of electromagnetic force engulfs the area. Map ----- +----------------------------------------------------+ | ?????????????????????????????????????????????????? | | ?????????????????????????????????????????????????? | | ?????????????????????????????????????????????????? | | ?????????????????????????????????????????????????? | | ?????????????????????????????????????????????????? | | ?????????????????????????????????????????????????? | | ?????????????????????????????????????????????????? | | ?????????????????????????????????????????????????? | | ?????????????????????????????????????????????????? | | ?????????????????????????????????????????????????? | | ?????????????????????????????????????????????????? | | ?????????????????????????????????????????????????? | | ?????????????????????????????????????????????????? | | ?????????????????????????????????????????????????? | | ????????##?????#########?????????????????????????? | | ??????? #????? #?????????????????????????? | | #???"""" #?????? #?????????????????????????? | | # ?"F "" #?????? #?????????????????????????? | | # """ #????# "" #?????????????????????????? | | # #????# "" #?????????????????????????? | | # """ #????# """ #?????????????????????????? | | # """ #????# """ #?????????????????????????? | | ? """ #????# """ #?????????????????????????? | | ??? ??????# #?????????????????????????? | | #####+#############/#############+#??????????????? | | ss %[ @ ????????? | | *%= ????????? | | =%* ????????? | | ?????????? | | % ?????????? | | ############+######+###################??????????? | | #????????? ??????????????????????????????????? | | #??????? ????????????????????????????????? | | #????? #???????????????????????????????? | | #???# #???????????????????????????????? | | #???# #???????????????????????????????? | | #???# #???????????????????????????????? | | #???# % #???????????????????????????????? | | #???# #???????????????????????????????? | | #???# #???????????????????????????????? | | #???# #???????????????????????????????? | | #???# #???????????????????????????????? | | #???# ! #???????????????????????????????? | | ####################?????????????????????????????? | | # #?????????????????????????????? | | # """ #?????????????????????????????? | | # """ #?????????????????????????????? | | # "S #?????????????????????????????? | | # """ #?????????????????????????????? | | # "" #?????????????????????????????? | +----------------------------------------------------+ Best States ------------- Heat Dissipation 71 Coolant Potential 50 Energy Generation 37 Energy Capacity 550 Matter Stores 300 Matter Capacity 300 Sight Range 16 Robot Scan Range 15 Terrain Scan Range 30 Terrain Scan Density 85 ECM Strength 2 Cloak Strength 4 Armor Coverage 525 Resistance: KI 25 Core Shielding 20 Evasion (%) 75 Targeting Accuracy 6 Recoil Reduction 6 Offensive Hacking 10 Item Schematics ----------------- None Robot Schematics ------------------ None Fabricated ------------ Nothing Repaired ---------- Adv. Surge Thruster | 73% | -6/Factory | Broken Enh. Hardcell Cannon | 11% | -5/Factory Studied --------- Hvy. Treads | -5/Factory | Hacked Imp. Medium Treads | -5/Factory | Hacked Adv. Surge Thruster | -5/Factory | Hacked Alien Tech Used ----------------- None Achievements -------------- None Challenges ------------ None Game ------ Seed CatalystAlertReconstructor Manual? 0 Play Time 01:11:57 Cumulative 153.4 hours Start 2026.08.02 @ 20:43:16 End 2026.08.03 @ 00:30:06 Sessions 3 Manual Loads 0 Difficulty Rogue Special Mode None Game No. 163 Rogue 109 Adventurer 54 Explorer 0 Win Type - Total 7 Types 3/0/1/1/0/0/0/1/0/1 Lore% 63 Gallery% 56 Achievement% 53 Wizard Run 0 Options --------- Layout 1 ASCII 0 Keyboard 0 Movement Mouse Keybinds 1 Fullscreen 2 Font 32/Tamsyn Map View 50x35 Zoom Use 0% Tactical HUD 1 Map Filters NONE Filters NONE Steam 1 RUN: 4f72ce35-7528-42f6-8a45-442e03a8ff12